bitfinex/quotes_BTCUSD_20220211
["timestamp","ask_amount","ask_price","bid_price","bid_amount"]
[1644546911435,0.4190062,43146.0,43141.0,0.057962]
[1644546911625,0.01,43149.0,43146.0,0.95]
[1644546911923,0.01222739,43169.0,43149.0,0.8]
[1644546911924,0.1181,43168.0,43149.0,0.8]
[1644546912123,0.1181,43168.0,43153.0,0.05]
[1644546912323,0.1181,43168.0,43161.0,0.32137179]
[1644546912522,0.01222739,43169.0,43160.0,0.17384311]
[1644546912722,0.01222739,43169.0,43161.0,0.37892]
[1644546913123,0.01222739,43169.0,43161.0,0.320971]
[1644546913522,0.30185892,43162.0,43161.0,0.320971]
[1644546914423,0.00108908,43162.0,43161.0,0.320971]
[1644546915472,0.00108908,43162.0,43158.0,0.057963]
[1644546915473,0.32706008,43162.0,43158.0,0.057963]
[1644546915674,0.325959,43159.0,43157.0,0.057963]
[1644546915972,0.00108908,43162.0,43157.0,0.057963]
[1644546916374,0.28567913,43161.0,43158.0,0.325959]
[1644546916575,0.28567913,43161.0,43158.0,0.057961]
[1644546918374,0.28567913,43161.0,43159.0,0.325959]
[1644546918573,0.28567913,43161.0,43158.0,0.057961]
[1644546918775,0.28567913,43161.0,43159.0,0.325959]
[1644546920326,0.28517913,43161.0,43158.0,0.057961]
[1644546920525,0.28517913,43161.0,43159.0,0.325959]
[1644546920727,0.28517913,43161.0,43160.0,0.325959]
[1644546920927,0.28517913,43161.0,43160.0,0.044789]
[1644546921126,0.28517913,43161.0,43159.0,0.325959]
[1644546921537,0.28517913,43161.0,43158.0,0.057961]
[1644546922230,0.28517913,43161.0,43158.0,0.11591953]
[1644546922770,0.28517913,43161.0,43159.0,0.325959]
[1644546923175,0.33517913,43161.0,43158.0,0.057961]
[1644546923376,0.33517913,43161.0,43155.0,0.057964]
[1644546923974,0.28517913,43161.0,43155.0,0.057964]
[1644546924378,0.00058541,43160.0,43157.0,0.325959]
[1644546924772,0.00058541,43160.0,43155.0,0.057964]
[1644546924972,0.00058541,43160.0,43157.0,0.044827]
[1644546925373,0.28517913,43161.0,43157.0,0.044827]
[1644546925573,0.00058541,43160.0,43156.0,0.057964]
[1644546925874,0.00058541,43160.0,43156.0,0.165924]
[1644546926174,0.00058541,43160.0,43159.0,0.044815]
[1644546926623,0.28517913,43161.0,43159.0,0.044815]
[1644546926820,0.00058541,43160.0,43157.0,0.11591928]
[1644546927022,0.00058541,43160.0,43158.0,0.044801]
[1644546927823,0.66042924,43161.0,43157.0,0.05796]
[1644546928021,0.66101323,43161.0,43157.0,0.11592079]
[1644546928822,0.66101323,43161.0,43157.0,0.05796]
[1644546929023,0.66042924,43161.0,43157.0,0.05796]
[1644546929223,0.66101323,43161.0,43157.0,0.05796]
[1644546929628,0.66101323,43161.0,43155.0,0.05796409]
[1644546930271,0.66042924,43161.0,43155.0,0.05796409]
[1644546930473,0.00058399,43160.0,43155.0,0.05796409]
[1644546930669,0.00086778,43160.0,43155.0,0.05796409]
[1644546931371,0.00028379,43160.0,43156.0,0.05796178]
[1644546931569,0.32654331,43160.0,43157.0,0.057963]
[1644546931772,0.325959,43159.0,43157.0,0.057963]
[1644546931971,0.32654331,43160.0,43154.0,0.05]
[1644546932173,0.0008681,43160.0,43154.0,0.05]
[1644546932571,0.00028379,43160.0,43155.0,0.44188728]
[1644546932771,0.00058431,43159.0,43155.0,0.057964]
[1644546932971,0.00058431,43159.0,43156.0,0.057965]
[1644546933774,0.00028379,43160.0,43156.0,0.057965]
[1644546934017,0.32654331,43160.0,43156.0,0.057965]
[1644546934216,0.0008681,43160.0,43156.0,0.057965]
[1644546934921,0.00028379,43160.0,43156.0,0.057965]
[1644546935118,0.325959,43160.0,43156.0,0.057965]
[1644546935418,0.00086803,43160.0,43156.0,0.057965]
[1644546936221,0.00028379,43160.0,43156.0,0.057965]
[1644546936419,0.00058424,43160.0,43156.0,0.11592823]
[1644546936622,0.00086803,43160.0,43157.0,0.383914]
[1644546936821,0.00086803,43160.0,43159.0,0.044816]
[1644546936822,0.00058424,43160.0,43159.0,0.044816]
[1644546937422,0.00137287,43162.0,43159.0,0.044816]
[1644546937685,0.25226844,43162.0,43158.0,0.17386423]
[1644546937883,0.25226844,43162.0,43159.0,0.057956]
[1644546938484,0.25180478,43162.0,43159.0,0.057956]
[1644546938685,0.25180478,43162.0,43160.0,0.11591467]
[1644546938887,0.325959,43161.0,43154.0,0.11592109]
[1644546939089,0.325959,43161.0,43150.0,0.1215118]
[1644546939090,0.05,43158.0,43150.0,0.0005118]
[1644546939286,0.07865226,43154.0,43150.0,0.0005118]
[1644546939485,0.40186585,43153.0,43150.0,0.0005118]
[1644546939686,0.45984285,43153.0,43150.0,0.0005118]
[1644546939989,0.29319698,43152.0,43150.0,0.0005118]
[1644546940486,0.325959,43151.0,43150.0,0.0005118]
[1644546940887,0.29319698,43152.0,43150.0,0.0001]
[1644546941087,0.325959,43151.0,43150.0,0.0001]
[1644546941521,0.27920098,43152.0,43150.0,0.0001]
[1644546943120,0.5970938,43152.0,43150.0,0.0001]
[1644546943519,0.31789282,43152.0,43150.0,0.0001]
[1644546945023,0.31789282,43152.0,43134.0,0.5]
[1644546945024,0.0733467,43138.0,43134.0,0.5]
[1644546945286,0.0733467,43138.0,43130.0,0.05]
[1644546945585,0.25370555,43133.0,43130.0,0.05]
[1644546945781,0.25370555,43133.0,43131.0,0.045071]
[1644546945980,0.0733467,43138.0,43130.0,0.05]
[1644546945981,0.058,43137.0,43130.0,0.05]
[1644546946180,0.3,43140.0,43131.0,0.325959]
[1644546946379,0.0465,43141.0,43132.0,0.325959]
[1644546946580,0.0465,43141.0,43133.0,0.325959]
[1644546946779,0.0465,43141.0,43131.0,0.115986]
[1644546946983,0.0465,43141.0,43132.0,0.325959]
[1644546947182,0.0465,43141.0,43130.0,0.05]
[1644546947381,0.0465,43141.0,43130.0,0.1]
[1644546947980,0.0465,43141.0,43133.0,0.26546418]
[1644546948384,0.0465,43141.0,43133.0,0.31546418]
[1644546948783,0.0465,43141.0,43134.0,0.325959]
[1644546949019,0.0465,43141.0,43133.0,0.05]
[1644546949221,0.0465,43141.0,43134.0,0.057991]
[1644546949419,0.057994,43140.0,43133.0,0.057993]
[1644546949620,0.057994,43140.0,43135.0,0.00050134]
[1644546949821,0.3532551,43139.0,43135.0,0.00050134]
[1644546950221,0.29857963,43136.0,43135.0,0.00050134]
[1644546950431,0.29857963,43136.0,43135.0,0.10849734]
[1644546950622,0.29857963,43136.0,43135.0,0.107996]
[1644546950826,0.29857963,43136.0,43135.0,0.05050134]
[1644546950827,0.59096904,43136.0,43135.0,0.05050134]
[1644546951037,0.9505,43135.0,43129.0,0.02382493]
[1644546951227,0.05,43132.0,43129.0,0.02382493]
[1644546951426,0.372459,43134.0,43129.0,0.02382493]
[1644546951427,0.058013,43130.0,43129.0,0.02382493]
[1644546951727,0.0465,43134.0,43130.0,0.325959]
[1644546952323,0.0465,43134.0,43130.0,0.375959]
[1644546952773,0.32817431,43133.0,43130.0,0.375959]
[1644546952976,0.37467431,43133.0,43130.0,0.375959]
[1644546953173,0.37467431,43133.0,43130.0,0.05]
[1644546953371,0.37467431,43133.0,43129.0,0.08182693]
[1644546953570,0.37467431,43133.0,43130.0,0.05]
[1644546953774,0.37467431,43133.0,43129.0,0.18182693]
[1644546953972,0.37467431,43133.0,43130.0,0.325959]
[1644546954174,0.21846849,43132.0,43130.0,0.325959]
[1644546954375,0.60434456,43131.0,43129.0,0.12432394]
[1644546954575,0.27243765,43130.0,43129.0,0.12432394]
[1644546955374,0.27243765,43130.0,43129.0,0.12382493]
[1644546955578,0.27243765,43130.0,43129.0,0.50778793]
[1644546955774,0.325959,43132.0,43129.0,0.17955293]
[1644546955974,0.39031216,43130.0,43129.0,0.13182893]
[1644546956176,1.00454357,43130.0,43129.0,0.02382493]
[1644546956431,1.13969762,43130.0,43129.0,0.02382493]
[1644546956626,0.85142521,43130.0,43129.0,0.02382493]
[1644546957025,1.11140306,43130.0,43129.0,0.02382493]
[1644546957628,1.11140306,43130.0,43127.0,9.03e-06]
[1644546957629,0.325959,43128.0,43127.0,9.03e-06]
[1644546957829,0.06617543,43122.0,43120.0,0.0001]
[1644546958030,0.372459,43121.0,43120.0,0.0001]
[1644546958427,0.430493,43121.0,43120.0,0.0001]
[1644546958629,0.99086863,43121.0,43120.0,0.0001]
[1644546959629,1.09086863,43121.0,43120.0,0.0001]
[1644546959828,1.38768734,43121.0,43120.0,0.0001]
[1644546960872,1.28768734,43121.0,43120.0,0.0001]
[1644546962271,1.73768734,43121.0,43118.0,7.91e-06]
[1644546962474,1.73768734,43121.0,43111.0,1.088e-05]
[1644546962475,0.058045,43117.0,43111.0,1.088e-05]
[1644546962671,0.384013,43111.0,43101.0,0.01]
[1644546962872,0.325959,43106.0,43101.0,0.01]
[1644546963070,0.0465,43105.0,43101.0,0.01]
[1644546963270,0.31718242,43103.0,43101.0,0.01]
[1644546963473,0.325959,43102.0,43101.0,0.01]
[1644546963930,0.36368242,43103.0,43101.0,0.01]
[1644546963931,0.68975842,43103.0,43101.0,0.01]
[1644546964122,0.326076,43102.0,43101.0,0.01]
[1644546964522,0.60605375,43102.0,43101.0,0.01]
[1644546966925,0.326076,43102.0,43101.0,0.01]
[1644546967427,0.51915746,43102.0,43101.0,0.01]
[1644546967672,0.326076,43102.0,43101.0,0.01]
[1644546968678,0.0465,43103.0,43101.0,0.01]
[1644546968876,0.00061236,43113.0,43101.0,0.01]
[1644546969674,0.3131845,43113.0,43106.0,0.39142771]
[1644546969874,0.37745838,43117.0,43107.0,0.058025]
[1644546970075,0.00061242,43113.0,43107.0,0.058025]
[1644546970274,0.00061242,43113.0,43107.0,0.108025]
[1644546970876,0.00061242,43113.0,43109.0,0.058025]
[1644546971075,0.3112679,43116.0,43109.0,0.058025]
[1644546971278,0.00058051,43113.0,43109.0,0.058025]
[1644546972417,0.3112679,43116.0,43109.0,0.05840919]
[1644546972619,0.00058052,43113.0,43109.0,0.05840919]
[1644546973519,0.05803,43114.0,43109.0,0.058025]
[1644546973719,0.00058052,43113.0,43109.0,0.11643619]
[1644546974123,0.00058052,43113.0,43109.0,0.00038419]
[1644546974124,0.326076,43112.0,43109.0,0.00038419]
[1644546974420,0.06455353,43110.0,43109.0,0.00038419]
[1644546974619,0.44866953,43110.0,43101.0,0.01014864]
[1644546974820,0.326076,43109.0,43108.0,0.00038419]
[1644546975019,0.66109881,43109.0,43108.0,0.00038419]
[1644546975272,0.77718881,43109.0,43108.0,0.00038419]
[1644546975872,0.77718881,43109.0,43101.0,0.01014864]
[1644546976073,0.058042,43107.0,43106.0,0.00040427]
[1644546976273,0.384118,43107.0,43106.0,0.00040427]
[1644546976677,0.66079936,43107.0,43106.0,0.00040427]
[1644546976873,0.96785215,43107.0,43106.0,0.00040427]
[1644546977076,0.326076,43106.0,43101.0,0.01014864]
[1644546977275,0.326076,43106.0,43104.0,0.00040429]
[1644546977676,0.27365753,43105.0,43104.0,0.00040429]
[1644546977876,0.59973353,43105.0,43104.0,0.00040429]
[1644546978279,0.59973353,43105.0,43101.0,0.01]
[1644546978280,0.71582653,43105.0,43101.0,0.01]
[1644546978479,0.71582653,43105.0,43102.0,0.00040431]
[1644546978480,0.372576,43104.0,43102.0,0.00040431]
[1644546978678,1.0042408,43103.0,43102.0,0.00040431]
[1644546978932,1.0507408,43103.0,43102.0,0.00040431]
[1644546979326,1.1087868,43103.0,43102.0,0.00040431]
[1644546979526,0.61968987,43102.0,43101.0,0.01]
[1644546979727,0.96196176,43102.0,43101.0,0.01]
[1644546979927,0.96168258,43102.0,43101.0,0.01]
[1644546980931,0.96168258,43102.0,43100.0,0.0001]
[1644546981135,0.96168258,43102.0,43097.0,0.00014864]
[1644546981136,0.384138,43100.0,43097.0,0.00014864]
[1644546981330,0.384138,43100.0,43096.0,0.02]
[1644546981331,0.442202,43098.0,43096.0,0.02]
[1644546981544,0.442202,43098.0,43096.0,0.015]
[1644546981545,0.68539202,43097.0,43096.0,0.015]
[1644546983068,0.80151902,43097.0,43096.0,0.015]
[1644546983468,0.79651902,43097.0,43096.0,0.015]
[1644546984869,0.89651902,43097.0,43096.0,0.015]
[1644546985269,0.89151902,43097.0,43096.0,0.015]
[1644546985469,0.79151902,43097.0,43096.0,0.015]
[1644546985869,0.89151902,43097.0,43096.0,0.015]
[1644546986070,0.588703,43097.0,43096.0,0.015]
[1644546988324,0.9023502,43097.0,43096.0,0.015]
[1644546988722,0.965,43096.0,43095.0,0.00014864]
[1644546988926,0.534152,43095.0,43094.0,9.85e-06]
[1644546989124,0.534152,43095.0,43089.0,0.00015725]
[1644546989125,0.79081664,43095.0,43089.0,0.00015725]
[1644546989323,0.7258655,43094.0,43093.0,0.00048986]
[1644546989527,0.7723655,43094.0,43093.0,0.00048986]
[1644546989724,0.8723655,43094.0,43093.0,0.00048986]
[1644546990373,0.326076,43092.0,43088.0,0.00015725]
[1644546990573,0.326076,43092.0,43084.0,0.48844202]
[1644546990574,0.372576,43091.0,43087.0,0.058063]
[1644546990784,0.326076,43090.0,43087.0,0.216127]
[1644546990973,0.372576,43090.0,43087.0,0.16628425]
[1644546991172,0.372576,43090.0,43087.0,0.11628425]
[1644546991875,0.372576,43090.0,43087.0,0.00015725]
[1644546992077,0.372576,43090.0,43086.0,0.00048874]
[1644546992473,0.058067,43089.0,43086.0,0.00048874]
[1644546992680,2.64692644,43097.0,43082.0,0.00015725]
[1644546992681,0.326076,43088.0,43082.0,0.05015725]
[1644546992879,1.12287237,43102.0,43086.0,0.11661405]
[1644546993076,0.30902582,43093.0,43090.0,0.058053]
[1644546993275,0.326076,43092.0,43090.0,0.058053]
[1644546993675,0.326076,43092.0,43090.0,0.174156]
[1644546993929,0.326076,43092.0,43090.0,0.058053]
[1644546994322,0.326076,43092.0,43091.0,0.058052]
[1644546995926,0.27443865,43095.0,43091.0,0.058052]
[1644546996124,0.326076,43094.0,43091.0,0.05820925]
[1644546996325,0.326076,43094.0,43092.0,0.05805239]
[1644546997969,0.34718854,43097.0,43092.0,0.10805239]
[1644546998169,0.326076,43096.0,43094.0,0.05804997]
[1644546998370,0.058052,43098.0,43094.0,0.05804997]
[1644546998371,0.326076,43097.0,43094.0,0.05804997]
[1644546998670,0.326076,43097.0,43094.0,0.05820722]
[1644546998869,0.058052,43098.0,43094.0,0.05804997]
[1644546999070,0.326076,43097.0,43094.0,0.05804997]
[1644546999271,0.326076,43097.0,43094.0,0.05820722]
[1644546999671,0.326076,43097.0,43094.0,0.10804997]
[1644546999876,0.326076,43097.0,43095.0,0.116103]
[1644547000272,0.326076,43097.0,43096.0,0.05]
[1644547001281,0.326076,43097.0,43096.0,0.426076]
[1644547001525,0.00568534,43110.0,43100.0,0.11608251]
[1644547001526,0.00061211,43106.0,43100.0,0.11608251]
[1644547001726,0.00061211,43106.0,43102.0,0.326076]
[1644547001922,9.8e-05,43102.0,43101.0,0.326076]
[1644547002122,9.8e-05,43102.0,43101.0,0.55820571]
[1644547002321,9.8e-05,43102.0,43101.0,0.60820571]
[1644547002527,9.8e-05,43102.0,43101.0,0.1741]
[1644547002722,0.326174,43102.0,43101.0,0.11607]
[1644547005188,0.326174,43102.0,43100.0,0.00015725]
[1644547005483,0.39076587,43102.0,43099.0,0.10820725]
[1644547005681,0.28610962,43100.0,43099.0,0.05820725]
[1644547005903,0.57424615,43100.0,43099.0,0.05805]
[1644547006084,0.90032215,43100.0,43099.0,0.05805]
[1644547007282,0.90032215,43100.0,43099.0,0.04805]
[1644547007985,0.326076,43100.0,43099.0,0.04805]
[1644547008183,9.8e-05,43102.0,43099.0,0.04805]
[1644547008382,9.8e-05,43102.0,43099.0,0.04820725]
[1644547009219,0.058048,43101.0,43099.0,0.04820725]
[1644547009418,0.38319193,43100.0,43099.0,0.04805]
[1644547010422,0.38319193,43100.0,43099.0,0.10609511]
[1644547011220,0.38319193,43100.0,43099.0,0.04805]
[1644547012018,0.70926793,43100.0,43099.0,0.04805]
[1644547013476,0.70926793,43100.0,43099.0,0.10609419]
[1644547013675,0.38319193,43100.0,43099.0,0.10609419]
[1644547014576,0.34514244,43101.0,43099.0,0.10609419]
[1644547014775,9.8e-05,43102.0,43099.0,0.10609419]
[1644547014976,0.326076,43101.0,43099.0,0.16429344]
[1644547015177,0.326076,43101.0,43099.0,0.16413619]
[1644547015782,9.8e-05,43102.0,43099.0,0.16413619]
[1644547015981,9.8e-05,43102.0,43099.0,0.16429344]
[1644547016179,9.8e-05,43102.0,43099.0,0.21429344]
[1644547016432,9.8e-05,43102.0,43100.0,0.376076]
[1644547016625,9.8e-05,43102.0,43100.0,0.49214152]
[1644547016826,0.64141344,43119.0,43102.0,0.326076]
[1644547017023,0.64141344,43119.0,43107.0,0.058024]
[1644547017024,0.058023,43118.0,43107.0,0.058024]
[1644547017225,0.32528065,43116.0,43109.0,0.54299922]
[1644547017422,0.32528065,43116.0,43110.0,0.326076]
[1644547017622,0.32528065,43116.0,43111.0,0.326076]
[1644547017823,0.32528065,43116.0,43111.0,0.384097]
[1644547018023,0.32528065,43116.0,43113.0,0.326076]
[1644547018230,0.0005856,43115.0,43113.0,0.326076]
[1644547018423,0.0005856,43115.0,43113.0,0.384097]
[1644547018625,0.0005856,43115.0,43114.0,0.326076]
[1644547019226,0.43663601,43120.0,43113.0,0.158021]
[1644547019227,0.43663601,43120.0,43115.0,0.05802]
[1644547019425,0.43663601,43120.0,43116.0,0.326076]
[1644547019426,0.00058559,43117.0,43116.0,0.326076]
[1644547020468,0.00058559,43117.0,43115.0,0.166041]
[1644547020469,0.326076,43119.0,43115.0,0.22406165]
[1644547020668,0.326076,43118.0,43116.0,0.058019]
[1644547020872,0.00058559,43119.0,43116.0,0.108019]
[1644547021271,0.00058559,43119.0,43117.0,0.326076]
[1644547021469,0.37361601,43120.0,43117.0,0.326076]
[1644547021670,0.31334102,43124.0,43118.0,0.326076]
[1644547021869,0.00053975,43120.0,43117.0,0.108015]
[1644547022673,0.31334102,43124.0,43117.0,0.108015]
[1644547022870,0.31334102,43124.0,43118.0,0.058016]
[1644547022871,0.326076,43121.0,43118.0,0.058016]
[1644547023073,0.08589014,43114.0,43110.0,0.116054]
[1644547023271,0.08589014,43114.0,43105.0,0.326076]
[1644547023475,0.08589014,43114.0,43101.0,0.32623325]
[1644547023669,0.08589014,43114.0,43100.0,0.00025725]
[1644547023928,0.30464519,43106.0,43100.0,0.0001]
[1644547024123,0.30464519,43106.0,43103.0,0.326076]
[1644547024522,0.00042023,43110.0,43103.0,0.384115]
[1644547024722,0.00042023,43110.0,43105.0,0.326076]
[1644547025123,0.21309108,43113.0,43106.0,0.107912]
[1644547025323,0.00054012,43110.0,43106.0,0.157912]
[1644547025823,0.326076,43109.0,43106.0,0.157912]
[1644547026223,0.00054012,43110.0,43106.0,0.157912]
[1644547026423,0.326076,43110.0,43108.0,0.058036]
[1644547026624,0.32663363,43110.0,43108.0,0.058036]
[1644547027225,0.384112,43109.0,43108.0,0.058036]
[1644547028476,0.38118261,43111.0,43108.0,0.60814923]
[1644547028477,0.15936124,43111.0,43108.0,0.60814923]
[1644547028676,0.18658046,43126.0,43110.0,0.326053]
[1644547028874,0.15876154,43128.0,43117.0,0.05]
[1644547029071,0.29464498,43132.0,43110.0,0.15]
[1644547029072,0.05801,43129.0,43116.0,0.326053]
[1644547029272,0.05801,43129.0,43117.0,0.326053]
[1644547029471,0.33452628,43126.0,43119.0,0.0580097]
[1644547029671,0.05801,43129.0,43122.0,0.05801]
[1644547029872,0.210553,43128.0,43124.0,0.05801]
[1644547030173,0.0005419,43125.0,43124.0,0.05801]
[1644547030372,0.0005419,43125.0,43124.0,0.384063]
[1644547030672,0.0005419,43125.0,43124.0,0.44207141]
[1644547030871,0.0005419,43125.0,43124.0,0.49207141]
[1644547031072,0.28697579,43130.0,43124.0,0.54207141]
[1644547031277,0.28697579,43130.0,43125.0,0.108007]
[1644547031518,0.0005419,43127.0,43125.0,0.158007]
[1644547031718,0.0005419,43127.0,43125.0,0.108007]
[1644547031919,0.0005419,43127.0,43126.0,0.326053]
[1644547032418,0.34498379,43130.0,43126.0,0.058008]
[1644547032619,0.21109491,43129.0,43127.0,0.058009]
[1644547032817,0.21109491,43129.0,43127.0,0.108009]
[1644547033518,0.210553,43129.0,43127.0,0.108009]
[1644547037577,0.00054288,43130.0,43128.0,0.44204943]
[1644547037776,0.00054288,43130.0,43129.0,0.326053]
[1644547038174,0.00054288,43130.0,43129.0,0.376053]
[1644547038375,0.001,43132.0,43130.0,0.326053]
[1644547038575,0.00154287,43132.0,43130.0,0.326053]
[1644547039627,0.001,43132.0,43131.0,0.376053]
[1644547041733,0.001,43132.0,43131.0,0.326053]
[1644547047724,0.001,43132.0,43131.0,0.376053]
[1644547049829,0.001,43132.0,43131.0,0.7520798]
[1644547050669,0.001,43132.0,43131.0,0.376053]
[1644547052174,0.001,43132.0,43131.0,0.67627397]
[1644547052371,0.001,43132.0,43131.0,0.67620795]
[1644547053373,0.001,43132.0,43131.0,0.37598698]
[1644547057028,0.001,43132.0,43131.0,0.72463084]
[1644547057228,0.001,43132.0,43131.0,1.03689858]
[1644547057681,0.001,43132.0,43131.0,0.37598698]
[1644547059284,0.001,43132.0,43131.0,0.47598698]
[1644547062422,0.001,43132.0,43131.0,0.78356974]
[1644547062924,0.001,43133.0,43131.0,0.98356974]
[1644547063125,0.001,43133.0,43132.0,0.35872252]
[1644547063323,0.001,43133.0,43132.0,0.83127552]
[1644547063523,0.002,43141.0,43137.0,0.20228145]
[1644547063723,0.001,43147.0,43139.0,0.16594595]
[1644547063924,0.00233151,43141.0,43140.0,0.326053]
[1644547064122,0.00233151,43141.0,43140.0,0.376053]
[1644547064422,0.00233151,43141.0,43140.0,0.476053]
[1644547064622,0.00233151,43141.0,43140.0,0.75518264]
[1644547064822,0.001,43147.0,43140.0,0.75518264]
[1644547065279,0.001,43147.0,43140.0,0.534026]
[1644547066776,0.31820541,43147.0,43140.0,0.534026]
[1644547067376,0.00046289,43143.0,43140.0,0.534026]
[1644547068278,0.31820541,43147.0,43140.0,0.534026]
[1644547068579,0.00060997,43143.0,43140.0,0.534026]
[1644547069622,0.001,43147.0,43140.0,0.534026]
[1644547070024,0.00060997,43143.0,43142.0,0.326053]
[1644547070221,0.00060997,43143.0,43142.0,0.376053]
[1644547070622,0.00060997,43143.0,43141.0,0.28985578]
[1644547070623,0.00060997,43143.0,43141.0,0.17391278]
[1644547070825,0.210553,43143.0,43141.0,0.05797078]
[1644547071223,0.210553,43143.0,43142.0,0.326053]
[1644547071224,0.05799,43143.0,43142.0,0.326053]
[1644547071529,0.34410542,43143.0,43142.0,0.05798362]
[1644547073983,0.34344529,43143.0,43142.0,0.05798362]
[1644547076187,0.077987,43144.0,43142.0,0.05798362]
[1644547076427,1.81447887,43143.0,43142.0,0.05798362]
[1644547077022,1.81447887,43143.0,43142.0,0.11596962]
[1644547077221,1.81447887,43143.0,43142.0,0.16596962]
[1644547077423,2.09944965,43143.0,43142.0,0.16596962]
[1644547081678,2.24610739,43143.0,43142.0,0.16596962]
[1644547081878,1.96113661,43143.0,43142.0,0.16596962]
[1644547082179,1.81447887,43143.0,43142.0,0.16596962]
[1644547082978,2.07240201,43143.0,43142.0,0.16596962]
[1644547089677,2.28295501,43143.0,43142.0,0.16596962]
[1644547089877,2.07240201,43143.0,43142.0,0.16596962]
[1644547103281,2.28295501,43143.0,43142.0,0.16596962]
[1644547103882,2.07240201,43143.0,43142.0,0.16596962]
[1644547104283,2.07240201,43143.0,43142.0,0.16589107]
[1644547106286,2.28295501,43143.0,43142.0,0.16589107]
[1644547106525,2.07240201,43143.0,43142.0,0.16589107]
[1644547106727,2.28295501,43143.0,43142.0,0.16589107]
[1644547106926,2.07240201,43143.0,43142.0,0.16589107]
[1644547110378,2.28295501,43143.0,43142.0,0.16589107]
[1644547110978,2.07240201,43143.0,43142.0,0.16589107]
[1644547113681,2.28295501,43143.0,43142.0,0.16589107]
[1644547113929,2.07240201,43143.0,43142.0,0.16589107]
[1644547115429,2.28295501,43143.0,43142.0,0.16589107]
[1644547115628,2.07240201,43143.0,43142.0,0.16589107]
[1644547117531,1.80947887,43143.0,43142.0,0.16589107]
[1644547117987,1.80847887,43143.0,43142.0,0.16589107]
[1644547118284,1.80847887,43143.0,43142.0,0.54194407]
[1644547119085,1.80847887,43143.0,43142.0,0.21589107]
[1644547119983,1.80847887,43143.0,43142.0,0.54194407]
[1644547120983,0.60458689,43143.0,43142.0,0.54194407]
[1644547122735,0.60458689,43143.0,43142.0,1.01491159]
[1644547125179,0.60458689,43143.0,43142.0,0.64194407]
[1644547126981,0.60458689,43143.0,43142.0,0.94133218]
[1644547127180,0.22476674,43143.0,43142.0,0.94632977]
[1644547127392,0.001,43147.0,43143.0,1.28118451]
[1644547127581,0.011,43149.0,43147.0,0.05795]
[1644547127783,0.00233447,43151.0,43148.0,0.422553]
[1644547127981,0.00233447,43151.0,43149.0,0.326053]
[1644547128280,0.00233447,43151.0,43149.0,1.07520073]
[1644547128481,0.26861553,43160.0,43149.0,1.07520073]
[1644547128682,0.00058369,43152.0,43149.0,1.07520073]
[1644547128934,0.00058369,43152.0,43149.0,1.13315163]
[1644547129327,0.00058369,43152.0,43149.0,1.44106302]
[1644547129731,0.00333439,43158.0,43149.0,1.49901402]
[1644547129732,0.001,43158.0,43149.0,1.49901402]
[1644547129934,0.00058369,43152.0,43149.0,1.49901402]
[1644547130933,0.001,43158.0,43149.0,1.49901402]
[1644547131133,0.00058266,43152.0,43149.0,1.49901402]
[1644547131931,0.00333029,43158.0,43149.0,1.49901402]
[1644547132131,0.001,43158.0,43149.0,1.49901402]
[1644547132435,0.00058266,43152.0,43149.0,1.49901402]
[1644547133279,0.001,43158.0,43149.0,1.49901402]
[1644547133482,0.00233029,43158.0,43152.0,0.907953]
[1644547133682,0.00233029,43158.0,43154.0,0.057947]
[1644547133880,0.00233029,43158.0,43155.0,0.326053]
[1644547134080,0.00233029,43158.0,43155.0,0.376053]
[1644547134281,0.00233029,43158.0,43155.0,0.526053]
[1644547134480,0.002,43160.0,43156.0,0.32452169]
[1644547134679,0.002,43160.0,43157.0,0.326053]
[1644547134880,0.002,43160.0,43157.0,0.376053]
[1644547135480,0.002,43160.0,43157.0,0.476053]
[1644547137130,0.00246246,43160.0,43157.0,0.74592351]
[1644547138132,0.002,43160.0,43157.0,0.74592351]
[1644547138331,0.00260991,43160.0,43158.0,0.2983567]
[1644547138534,0.00260991,43160.0,43157.0,0.79592351]
[1644547138732,0.00260991,43160.0,43157.0,0.476053]
[1644547140292,0.001,43165.0,43159.0,0.95]
[1644547140486,0.001,43165.0,43159.0,1.7993847]
[1644547140683,0.001,43165.0,43160.0,0.49986256]
[1644547140884,0.001,43165.0,43161.0,0.372553]
[1644547141084,0.001,43165.0,43162.0,0.37317697]
[1644547141283,0.001,43165.0,43163.0,0.376053]
[1644547141484,0.001,43165.0,43164.0,0.326053]
[1644547141684,0.001,43165.0,43164.0,0.376053]
[1644547141886,0.0009225,43167.0,43165.0,0.326053]
[1644547142083,0.00046202,43166.0,43165.0,0.326053]
[1644547142282,0.00046202,43166.0,43165.0,0.476053]
[1644547142482,0.00046202,43166.0,43165.0,0.6419161]
[1644547142685,0.00046202,43166.0,43165.0,0.6998481]
[1644547142890,0.00120695,43167.0,43166.0,0.05]
[1644547143086,0.00120695,43167.0,43166.0,0.376053]
[1644547143087,0.0009225,43167.0,43166.0,0.376053]
[1644547143286,0.00084701,43167.0,43166.0,0.476053]
[1644547146333,0.00896873,43169.0,43167.0,0.326053]
[1644547146532,0.00835885,43169.0,43167.0,0.67366176]
[1644547146733,0.00896873,43169.0,43168.0,0.376053]
[1644547146937,0.00896873,43169.0,43168.0,0.476053]
[1644547147234,0.00896873,43169.0,43168.0,0.526053]
[1644547147682,0.00835885,43169.0,43168.0,0.376053]
[1644547147886,0.00835885,43169.0,43167.0,0.28967376]
[1644547148094,0.05,43168.0,43163.0,0.05]
[1644547148282,0.210553,43167.0,43163.0,0.05]
[1644547148884,0.34796501,43166.0,43163.0,0.05]
[1644547149085,0.43621035,43164.0,43163.0,0.05]
[1644547149281,0.64676335,43164.0,43163.0,0.05]
[1644547150182,0.96207508,43164.0,43163.0,0.05]
[1644547150383,0.96207508,43164.0,43153.0,0.00049456]
[1644547150384,1.01207508,43164.0,43153.0,0.00049456]
[1644547150585,0.05,43156.0,43153.0,0.00049456]
[1644547150788,0.210553,43155.0,43153.0,0.00049456]
[1644547151283,1.1431727,43154.0,43152.0,0.07419]
[1644547151535,1.1431727,43154.0,43152.0,0.07468458]
[1644547151536,0.210553,43153.0,43152.0,0.07468458]
[1644547152236,0.268532,43153.0,43152.0,0.07468458]
[1644547152435,0.268532,43153.0,43152.0,0.07419]